[Event "Titled Tuesday Blitz February 21 Late 2023"]
[White "Skvortsov, Andrei"]
[Black "Kobo, Ori"]
[WhiteFideId "24108600"]
[BlackFideId "2812320"]
[WhiteElo "2313"]
[BlackElo "2559"]
[Result "1/2-1/2"]
[Round "06"]
[TimeControl "180+2"]
[Date "2023.02.21"]
[WhiteClock "0:00:12"]
[BlackClock "0:00:02"]

1. e4 {[%clk 0:03:00]}  g6 {[%clk 0:02:58]} 2. d4 {[%clk 0:03:00]}  Bg7 {[%clk 0:02:59]} 3. Nc3 {[%clk 0:03:00]}  d6 {[%clk 0:03:00]} 4. h3 {[%clk 0:02:59]}  Nf6 {[%clk 0:02:59]} 5. Nf3 {[%clk 0:02:59]}  a6 {[%clk 0:02:58]} 6. a4 {[%clk 0:02:53]}  O-O {[%clk 0:02:58]} 7. Be2 {[%clk 0:02:53]}  Nc6 {[%clk 0:02:56]} 8. O-O {[%clk 0:02:53]}  e5 {[%clk 0:02:57]} 9. dxe5 {[%clk 0:02:53]}  dxe5 {[%clk 0:02:55]} 10. Bg5 {[%clk 0:02:51]}  Be6 {[%clk 0:02:50]} 11. Qxd8 {[%clk 0:02:41]}  Rfxd8 {[%clk 0:02:47]} 12. Rfd1 {[%clk 0:02:37]}  h6 {[%clk 0:02:36]} 13. Be3 {[%clk 0:02:35]}  Nb4 {[%clk 0:02:20]} 14. Rxd8+ {[%clk 0:02:33]}  Rxd8 {[%clk 0:02:19]} 15. Rd1 {[%clk 0:02:28]}  Re8 {[%clk 0:02:13]} 16. Rd2 {[%clk 0:01:55]}  Nd7 {[%clk 0:01:30]} 17. Nb1 {[%clk 0:01:35]}  f5 {[%clk 0:01:24]} 18. exf5 {[%clk 0:01:26]}  gxf5 {[%clk 0:01:21]} 19. c3 {[%clk 0:01:19]}  Nd5 {[%clk 0:01:07]} 20. Bc4 {[%clk 0:01:17]}  c6 {[%clk 0:01:03]} 21. Rd1 {[%clk 0:01:12]}  f4 {[%clk 0:00:56]} 22. Bc1 {[%clk 0:01:10]}  Bf7 {[%clk 0:00:34]} 23. Ne1 {[%clk 0:00:46]}  N7b6 {[%clk 0:00:29]} 24. Bb3 {[%clk 0:00:45]}  a5 {[%clk 0:00:26]} 25. f3 {[%clk 0:00:38]}  Kf8 {[%clk 0:00:25]} 26. Nd3 {[%clk 0:00:38]}  Nxc3 {[%clk 0:00:17]} 27. Bxf7 {[%clk 0:00:35]}  Nxd1 {[%clk 0:00:17]} 28. Bxe8 {[%clk 0:00:35]}  Kxe8 {[%clk 0:00:18]} 29. b3 {[%clk 0:00:23]}  Nd7 {[%clk 0:00:13]} 30. Kf1 {[%clk 0:00:21]}  b5 {[%clk 0:00:07]} 31. Ke2 {[%clk 0:00:20]}  Ne3 {[%clk 0:00:07]} 32. Bxe3 {[%clk 0:00:20]}  fxe3 {[%clk 0:00:08]} 33. Kxe3 {[%clk 0:00:21]}  Nb6 {[%clk 0:00:05]} 34. axb5 {[%clk 0:00:21]}  cxb5 {[%clk 0:00:06]} 35. Nc3 {[%clk 0:00:21]}  a4 {[%clk 0:00:06]} 36. Nxb5 {[%clk 0:00:20]}  axb3 {[%clk 0:00:04]} 37. Na3 {[%clk 0:00:18]}  e4 {[%clk 0:00:03]} 38. fxe4 {[%clk 0:00:17]}  Na4 {[%clk 0:00:03]} 39. Nb1 {[%clk 0:00:17]}  b2 {[%clk 0:00:04]} 40. Kd2 {[%clk 0:00:17]}  Ke7 {[%clk 0:00:04]} 41. Kc2 {[%clk 0:00:17]}  Ke6 {[%clk 0:00:04]} 42. Nd2 {[%clk 0:00:18]}  Bf6 {[%clk 0:00:03]} 43. Nc4 {[%clk 0:00:17]}  b1=Q+ {[%clk 0:00:03]} 44. Kxb1 {[%clk 0:00:17]}  Nc3+ {[%clk 0:00:04]} 45. Kc2 {[%clk 0:00:18]}  Nxe4 {[%clk 0:00:05]} 46. Ne3 {[%clk 0:00:17]}  Ng3 {[%clk 0:00:04]} 47. Kd1 {[%clk 0:00:16]}  Bg5 {[%clk 0:00:04]} 48. Ng4 {[%clk 0:00:16]}  h5 {[%clk 0:00:04]} 49. Ngf2 {[%clk 0:00:16]}  h4 {[%clk 0:00:04]} 50. Ng4 {[%clk 0:00:16]}  Kf5 {[%clk 0:00:05]} 51. Ke1 {[%clk 0:00:14]}  Be7 {[%clk 0:00:05]} 52. Nc1 {[%clk 0:00:13]}  Kf4 {[%clk 0:00:04]} 53. Ne2+ {[%clk 0:00:12]}  Nxe2 {[%clk 0:00:04]} 54. Kxe2 {[%clk 0:00:13]}  Bd8 {[%clk 0:00:03]} 55. Kf2 {[%clk 0:00:13]}  Be7 {[%clk 0:00:04]} 56. Kf1 {[%clk 0:00:13]}  Bc5 {[%clk 0:00:04]} 57. Nf6 {[%clk 0:00:12]}  Ba7 {[%clk 0:00:03]} 58. Nd5+ {[%clk 0:00:12]}  Kg5 {[%clk 0:00:04]} 59. Ke2 {[%clk 0:00:12]}  Bb8 {[%clk 0:00:04]} 60. Kf3 {[%clk 0:00:12]}  Bh2 {[%clk 0:00:05]} 61. Nc3 {[%clk 0:00:12]}  Bb8 {[%clk 0:00:05]} 62. Ne4+ {[%clk 0:00:12]}  Kh5 {[%clk 0:00:06]} 63. Nf6+ {[%clk 0:00:10]}  Kg5 {[%clk 0:00:06]} 64. Nd7 {[%clk 0:00:11]}  Bh2 {[%clk 0:00:06]} 65. Ke4 {[%clk 0:00:11]}  Bg3 {[%clk 0:00:06]} 66. Nc5 {[%clk 0:00:11]}  Kh5 {[%clk 0:00:06]} 67. Nb3 {[%clk 0:00:10]}  Bh2 {[%clk 0:00:06]} 68. Nd4 {[%clk 0:00:11]}  Bb8 {[%clk 0:00:07]} 69. Kf5 {[%clk 0:00:11]}  Bg3 {[%clk 0:00:06]} 70. Ne6 {[%clk 0:00:10]}  Be1 {[%clk 0:00:03]} 71. Nf4+ {[%clk 0:00:10]}  Kh6 {[%clk 0:00:03]} 72. Kg4 {[%clk 0:00:11]}  Bg3 {[%clk 0:00:03]} 73. Nd5 {[%clk 0:00:11]}  Be1 {[%clk 0:00:04]} 74. Ne3 {[%clk 0:00:11]}  Bf2 {[%clk 0:00:04]} 75. Nf5+ {[%clk 0:00:12]}  Kg6 {[%clk 0:00:04]} 76. Nxh4+ {[%clk 0:00:12]}  Kf6 {[%clk 0:00:05]} 77. Nf3 {[%clk 0:00:12]}  Kg6 {[%clk 0:00:05]} 78. Ne5+ {[%clk 0:00:12]}  Kh6 {[%clk 0:00:06]} 79. Nd3 {[%clk 0:00:12]}  Be3 {[%clk 0:00:06]} 80. g3 {[%clk 0:00:12]}  Bd2 {[%clk 0:00:06]} 81. Kf3 {[%clk 0:00:13]}  Kh5 {[%clk 0:00:06]} 82. Nf4+ {[%clk 0:00:12]}  Kh6 {[%clk 0:00:06]} 83. h4 {[%clk 0:00:12]}  Be1 {[%clk 0:00:07]} 84. Ne2 {[%clk 0:00:12]}  Kh5 {[%clk 0:00:06]} 85. Nf4+ {[%clk 0:00:12]}  Kh6 {[%clk 0:00:06]} 86. Nd3 {[%clk 0:00:13]}  Bd2 {[%clk 0:00:06]} 87. Kg4 {[%clk 0:00:13]}  Bc3 {[%clk 0:00:05]} 88. Kf5 {[%clk 0:00:13]}  Bd2 {[%clk 0:00:05]} 89. g4 {[%clk 0:00:13]}  Bc3 {[%clk 0:00:06]} 90. Nf4 {[%clk 0:00:14]}  Ba1 {[%clk 0:00:06]} 91. g5+ {[%clk 0:00:14]}  Kh7 {[%clk 0:00:05]} 92. Kg4 {[%clk 0:00:14]}  Bb2 {[%clk 0:00:05]} 93. h5 {[%clk 0:00:15]}  Bc1 {[%clk 0:00:06]} 94. Nd5 {[%clk 0:00:15]}  Bd2 {[%clk 0:00:06]} 95. Kf5 {[%clk 0:00:15]}  Bc1 {[%clk 0:00:06]} 96. Nf6+ {[%clk 0:00:16]}  Kh8 {[%clk 0:00:06]} 97. Ne4 {[%clk 0:00:15]}  Be3 {[%clk 0:00:06]} 98. Kg4 {[%clk 0:00:15]}  Bc1 {[%clk 0:00:05]} 99. Ng3 {[%clk 0:00:16]}  Be3 {[%clk 0:00:06]} 100. Nf5 {[%clk 0:00:16]}  Bd2 {[%clk 0:00:06]} 101. g6 {[%clk 0:00:15]}  Bc1 {[%clk 0:00:06]} 102. Kf3 {[%clk 0:00:15]}  Bg5 {[%clk 0:00:05]} 103. Ke4 {[%clk 0:00:16]}  Bc1 {[%clk 0:00:05]} 104. Kd5 {[%clk 0:00:16]}  Bg5 {[%clk 0:00:04]} 105. Ke6 {[%clk 0:00:17]}  Kg8 {[%clk 0:00:04]} 106. Ng3 {[%clk 0:00:12]}  Kg7 {[%clk 0:00:03]} 107. Kf5 {[%clk 0:00:12]}  Bd2 {[%clk 0:00:03]} 108. Ne4 {[%clk 0:00:12]}  Bc1 {[%clk 0:00:03]} 109. Nf6 {[%clk 0:00:12]}  Be3 {[%clk 0:00:03]} 110. Ng4 {[%clk 0:00:12]}  Bd2 {[%clk 0:00:03]} 111. h6+ {[%clk 0:00:11]}  Bxh6 {[%clk 0:00:02]} 112. Nxh6 {[%clk 0:00:11]}  Kh8 {[%clk 0:00:02]} 113. Kf6 {[%clk 0:00:12]} 1/2-1/2


[Site "https://www.chess.com"]

[Event "Titled Tuesday Blitz February 21 Late 2023"]
[White "Manelyuk, Daniil"]
[Black "Rustemov, Alexander"]
[WhiteFideId "44173920"]
[BlackFideId "4119002"]
[WhiteElo "2302"]
[BlackElo "2525"]
[Result "0-1"]
[Round "06"]
[TimeControl "180+2"]
[Date "2023.02.21"]
[WhiteClock "0:00:12"]
[BlackClock "0:00:07"]

1. e4 {[%clk 0:03:00]}  e6 {[%clk 0:02:59]} 2. d4 {[%clk 0:03:00]}  d5 {[%clk 0:03:00]} 3. Bd3 {[%clk 0:03:00]}  dxe4 {[%clk 0:02:58]} 4. Bxe4 {[%clk 0:03:01]}  Nf6 {[%clk 0:02:58]} 5. Bf3 {[%clk 0:03:01]}  Be7 {[%clk 0:02:58]} 6. Ne2 {[%clk 0:03:00]}  O-O {[%clk 0:02:58]} 7. O-O {[%clk 0:03:00]}  Nbd7 {[%clk 0:02:57]} 8. b3 {[%clk 0:02:53]}  e5 {[%clk 0:02:50]} 9. Nbc3 {[%clk 0:02:43]}  Re8 {[%clk 0:02:41]} 10. Bb2 {[%clk 0:02:36]}  exd4 {[%clk 0:02:35]} 11. Nxd4 {[%clk 0:02:28]}  Ne5 {[%clk 0:02:33]} 12. Be2 {[%clk 0:02:28]}  c6 {[%clk 0:02:31]} 13. Nf3 {[%clk 0:02:26]}  Nxf3+ {[%clk 0:02:18]} 14. Bxf3 {[%clk 0:02:27]}  Bf5 {[%clk 0:02:18]} 15. Qc1 {[%clk 0:02:14]}  Qc7 {[%clk 0:02:11]} 16. Ne2 {[%clk 0:02:13]}  Rad8 {[%clk 0:02:08]} 17. Ng3 {[%clk 0:02:10]}  Bg6 {[%clk 0:02:07]} 18. c4 {[%clk 0:02:07]}  Nd7 {[%clk 0:01:59]} 19. Re1 {[%clk 0:02:00]}  a5 {[%clk 0:01:47]} 20. Ne4 {[%clk 0:01:38]}  Bxe4 {[%clk 0:01:28]} 21. Bxe4 {[%clk 0:01:39]}  Bf6 {[%clk 0:01:28]} 22. Bxf6 {[%clk 0:01:33]}  Nxf6 {[%clk 0:01:28]} 23. Bf3 {[%clk 0:01:27]}  Qb6 {[%clk 0:01:20]} 24. h3 {[%clk 0:01:23]}  Qb4 {[%clk 0:01:17]} 25. Rxe8+ {[%clk 0:01:17]}  Rxe8 {[%clk 0:01:16]} 26. a3 {[%clk 0:01:06]}  Qe7 {[%clk 0:01:05]} 27. Qc3 {[%clk 0:01:01]}  Qe5 {[%clk 0:01:05]} 28. Qxe5 {[%clk 0:01:00]}  Rxe5 {[%clk 0:01:06]} 29. Rd1 {[%clk 0:00:59]}  Kf8 {[%clk 0:01:03]} 30. b4 {[%clk 0:00:56]}  Ke7 {[%clk 0:01:02]} 31. g3 {[%clk 0:00:52]}  g6 {[%clk 0:00:55]} 32. Kg2 {[%clk 0:00:47]}  Nd7 {[%clk 0:00:55]} 33. Rb1 {[%clk 0:00:32]}  axb4 {[%clk 0:00:52]} 34. axb4 {[%clk 0:00:32]}  Kd6 {[%clk 0:00:48]} 35. b5 {[%clk 0:00:29]}  Rc5 {[%clk 0:00:37]} 36. Rd1+ {[%clk 0:00:22]}  Kc7 {[%clk 0:00:36]} 37. Be2 {[%clk 0:00:22]}  cxb5 {[%clk 0:00:28]} 38. cxb5 {[%clk 0:00:22]}  Rc3 {[%clk 0:00:28]} 39. f4 {[%clk 0:00:19]}  Nc5 {[%clk 0:00:27]} 40. Bf3 {[%clk 0:00:15]}  Rc2+ {[%clk 0:00:27]} 41. Kf1 {[%clk 0:00:13]}  Rb2 {[%clk 0:00:28]} 42. Re1 {[%clk 0:00:12]}  Kd6 {[%clk 0:00:27]} 43. Rd1+ {[%clk 0:00:12]}  Ke7 {[%clk 0:00:27]} 44. Re1+ {[%clk 0:00:10]}  Kf6 {[%clk 0:00:26]} 45. Be2 {[%clk 0:00:11]}  Ne4 {[%clk 0:00:23]} 46. Kg2 {[%clk 0:00:10]}  Nc3 {[%clk 0:00:23]} 47. Kf3 {[%clk 0:00:10]}  Nxe2 {[%clk 0:00:19]} 48. Rxe2 {[%clk 0:00:11]}  Rxe2 {[%clk 0:00:15]} 49. Kxe2 {[%clk 0:00:12]}  Ke6 {[%clk 0:00:15]} 50. Ke3 {[%clk 0:00:12]}  Kd5 {[%clk 0:00:15]} 51. f5 {[%clk 0:00:12]}  Kc5 {[%clk 0:00:11]} 52. Ke4 {[%clk 0:00:12]}  gxf5+ {[%clk 0:00:09]} 53. Kxf5 {[%clk 0:00:12]}  Kxb5 {[%clk 0:00:09]} 54. Kf6 {[%clk 0:00:11]}  Kc6 {[%clk 0:00:10]} 55. g4 {[%clk 0:00:11]}  b5 {[%clk 0:00:10]} 56. g5 {[%clk 0:00:12]}  b4 {[%clk 0:00:11]} 57. h4 {[%clk 0:00:11]}  b3 {[%clk 0:00:11]} 58. Kxf7 {[%clk 0:00:11]}  b2 {[%clk 0:00:12]} 59. h5 {[%clk 0:00:12]}  b1=Q {[%clk 0:00:12]} 60. g6 {[%clk 0:00:13]}  Qf5+ {[%clk 0:00:10]} 61. Kg7 {[%clk 0:00:12]}  hxg6 {[%clk 0:00:09]} 62. h6 {[%clk 0:00:12]}  g5 {[%clk 0:00:08]} 63. h7 {[%clk 0:00:13]}  g4 {[%clk 0:00:08]} 64. h8=Q {[%clk 0:00:10]}  Qe5+ {[%clk 0:00:08]} 65. Kg8 {[%clk 0:00:08]}  Qxh8+ {[%clk 0:00:09]} 66. Kxh8 {[%clk 0:00:09]}  g3 {[%clk 0:00:09]} 67. Kg7 {[%clk 0:00:10]}  g2 {[%clk 0:00:09]} 68. Kf7 {[%clk 0:00:11]}  g1=Q {[%clk 0:00:10]} 69. Ke7 {[%clk 0:00:12]}  Qe3+ {[%clk 0:00:10]} 70. Kd8 {[%clk 0:00:12]}  Qe4 {[%clk 0:00:06]} 71. Kc8 {[%clk 0:00:12]}  Qe8# {[%clk 0:00:07]} 0-1


[Site "https://www.chess.com"]

[Event "Titled Tuesday Blitz February 21 Late 2023"]
[White "Manukyan, Sargis V."]
[Black "Timmermans, Mark"]
[WhiteFideId "13303465"]
[BlackFideId "1026399"]
[WhiteElo "2253"]
[BlackElo "2392"]
[Result "1-0"]
[Round "06"]
[TimeControl "180+2"]
[Date "2023.02.21"]
[WhiteClock "0:00:18"]
[BlackClock "0:00:05"]

1. Nf3 {[%clk 0:03:00]}  Nf6 {[%clk 0:02:59]} 2. d4 {[%clk 0:02:59]}  e6 {[%clk 0:03:00]} 3. g3 {[%clk 0:03:00]}  d5 {[%clk 0:03:01]} 4. Bg2 {[%clk 0:02:59]}  Be7 {[%clk 0:03:02]} 5. O-O {[%clk 0:02:59]}  O-O {[%clk 0:03:03]} 6. Ne5 {[%clk 0:02:59]}  c5 {[%clk 0:02:53]} 7. c4 {[%clk 0:02:57]}  Nc6 {[%clk 0:02:53]} 8. Nxc6 {[%clk 0:02:54]}  bxc6 {[%clk 0:02:54]} 9. cxd5 {[%clk 0:02:51]}  cxd5 {[%clk 0:02:52]} 10. Nc3 {[%clk 0:02:51]}  Bb7 {[%clk 0:02:42]} 11. b3 {[%clk 0:02:48]}  Rc8 {[%clk 0:02:37]} 12. Bb2 {[%clk 0:02:48]}  cxd4 {[%clk 0:02:37]} 13. Qxd4 {[%clk 0:02:49]}  Bc5 {[%clk 0:02:37]} 14. Qh4 {[%clk 0:02:47]}  Qa5 {[%clk 0:01:45]} 15. Rac1 {[%clk 0:02:37]}  Ba3 {[%clk 0:01:41]} 16. Bxa3 {[%clk 0:02:33]}  Qxa3 {[%clk 0:01:42]} 17. Qd4 {[%clk 0:02:27]}  a6 {[%clk 0:01:34]} 18. Qd2 {[%clk 0:02:24]}  Rc6 {[%clk 0:01:22]} 19. Nb1 {[%clk 0:02:10]}  Qd6 {[%clk 0:01:21]} 20. Rxc6 {[%clk 0:02:08]}  Bxc6 {[%clk 0:01:22]} 21. Rc1 {[%clk 0:02:08]}  Bb7 {[%clk 0:01:20]} 22. Nc3 {[%clk 0:01:57]}  Rc8 {[%clk 0:01:19]} 23. Na4 {[%clk 0:01:55]}  Rc6 {[%clk 0:01:18]} 24. Rxc6 {[%clk 0:01:48]}  Bxc6 {[%clk 0:01:18]} 25. Nc3 {[%clk 0:01:33]}  Qb4 {[%clk 0:01:18]} 26. Ne4 {[%clk 0:01:32]}  Qxd2 {[%clk 0:01:16]} 27. Nxd2 {[%clk 0:01:33]}  Kf8 {[%clk 0:01:16]} 28. e3 {[%clk 0:01:31]}  Ke7 {[%clk 0:01:17]} 29. Bf1 {[%clk 0:01:31]}  Kd6 {[%clk 0:01:17]} 30. Bxa6 {[%clk 0:01:29]}  Kc5 {[%clk 0:01:16]} 31. a3 {[%clk 0:01:26]}  e5 {[%clk 0:00:35]} 32. b4+ {[%clk 0:01:18]}  Kb6 {[%clk 0:00:35]} 33. Bd3 {[%clk 0:01:17]}  e4 {[%clk 0:00:34]} 34. Be2 {[%clk 0:01:14]}  Ba4 {[%clk 0:00:34]} 35. Nb1 {[%clk 0:01:11]}  Bb5 {[%clk 0:00:32]} 36. Bd1 {[%clk 0:01:04]}  Nd7 {[%clk 0:00:32]} 37. Nc3 {[%clk 0:01:03]}  Bc4 {[%clk 0:00:33]} 38. f3 {[%clk 0:00:58]}  f5 {[%clk 0:00:33]} 39. g4 {[%clk 0:00:55]}  fxg4 {[%clk 0:00:31]} 40. fxe4 {[%clk 0:00:55]}  dxe4 {[%clk 0:00:32]} 41. Bxg4 {[%clk 0:00:51]}  Ne5 {[%clk 0:00:32]} 42. Bf5 {[%clk 0:00:49]}  Bd3 {[%clk 0:00:33]} 43. Bxe4 {[%clk 0:00:46]}  Bxe4 {[%clk 0:00:30]} 44. Nxe4 {[%clk 0:00:47]}  Nc4 {[%clk 0:00:30]} 45. a4 {[%clk 0:00:42]}  Nxe3 {[%clk 0:00:30]} 46. Nc3 {[%clk 0:00:31]}  Nc2 {[%clk 0:00:29]} 47. b5 {[%clk 0:00:29]}  Ka5 {[%clk 0:00:25]} 48. Kf2 {[%clk 0:00:27]}  Kb4 {[%clk 0:00:21]} 49. b6 {[%clk 0:00:21]}  Nd4 {[%clk 0:00:22]} 50. b7 {[%clk 0:00:20]}  Nc6 {[%clk 0:00:22]} 51. Nd5+ {[%clk 0:00:19]}  Kc5 {[%clk 0:00:14]} 52. Ne7 {[%clk 0:00:18]}  Nb8 {[%clk 0:00:14]} 53. Nf5 {[%clk 0:00:19]}  Kb4 {[%clk 0:00:12]} 54. Nxg7 {[%clk 0:00:17]}  Kxa4 {[%clk 0:00:13]} 55. Kg3 {[%clk 0:00:17]}  Kb5 {[%clk 0:00:13]} 56. Ne6 {[%clk 0:00:18]}  Kb6 {[%clk 0:00:14]} 57. Nf8 {[%clk 0:00:18]}  h6 {[%clk 0:00:13]} 58. Kh4 {[%clk 0:00:18]}  Kxb7 {[%clk 0:00:14]} 59. Kh5 {[%clk 0:00:19]}  Kc6 {[%clk 0:00:13]} 60. Kxh6 {[%clk 0:00:19]}  Kd6 {[%clk 0:00:14]} 61. Kg7 {[%clk 0:00:19]}  Nc6 {[%clk 0:00:14]} 62. h4 {[%clk 0:00:20]}  Nd4 {[%clk 0:00:15]} 63. h5 {[%clk 0:00:20]}  Ke7 {[%clk 0:00:15]} 64. Ng6+ {[%clk 0:00:20]}  Ke6 {[%clk 0:00:15]} 65. Nh4 {[%clk 0:00:21]}  Ke7 {[%clk 0:00:13]} 66. h6 {[%clk 0:00:21]}  Ne6+ {[%clk 0:00:13]} 67. Kg8 {[%clk 0:00:19]}  Ng5 {[%clk 0:00:13]} 68. Kg7 {[%clk 0:00:18]}  Ne6+ {[%clk 0:00:12]} 69. Kg6 {[%clk 0:00:19]}  Nf4+ {[%clk 0:00:12]} 70. Kf5 {[%clk 0:00:18]}  Nd5 {[%clk 0:00:05]} 71. h7 {[%clk 0:00:18]}  Ne3+ {[%clk 0:00:06]} 72. Kg6 {[%clk 0:00:18]}  Nd5 {[%clk 0:00:05]} 73. Nf5+ {[%clk 0:00:18]} 1-0


[Site "https://www.chess.com"]

[Event "Titled Tuesday Blitz February 21 Late 2023"]
[White "Kollars, Dmitrij"]
[Black "Hnydiuk, Aleksander"]
[WhiteFideId "12909572"]
[BlackFideId "1109057"]
[WhiteElo "2607"]
[BlackElo "2363"]
[Result "0-1"]
[Round "06"]
[TimeControl "180+2"]
[Date "2023.02.21"]
[WhiteClock "0:02:04"]
[BlackClock "0:01:26"]

1. Nf3 {[%clk 0:03:00]}  Nf6 {[%clk 0:03:00]} 2. c4 {[%clk 0:03:01]}  e6 {[%clk 0:03:00]} 3. Nc3 {[%clk 0:03:00]}  Bb4 {[%clk 0:02:51]} 4. g4 {[%clk 0:03:00]}  O-O {[%clk 0:02:49]} 5. g5 {[%clk 0:02:59]}  Ne8 {[%clk 0:02:49]} 6. Qc2 {[%clk 0:02:57]}  d5 {[%clk 0:02:46]} 7. e3 {[%clk 0:02:51]}  c5 {[%clk 0:02:44]} 8. b3 {[%clk 0:02:39]}  Nc6 {[%clk 0:02:41]} 9. Bb2 {[%clk 0:02:35]}  d4 {[%clk 0:02:35]} 10. Ne4 {[%clk 0:02:34]}  f5 {[%clk 0:02:24]} 11. gxf6 {[%clk 0:02:33]}  Nxf6 {[%clk 0:02:25]} 12. Bd3 {[%clk 0:02:29]}  e5 {[%clk 0:01:54]} 13. Nfg5 {[%clk 0:02:24]}  h6 {[%clk 0:01:39]} 14. Nxf6+ {[%clk 0:02:23]}  Qxf6 {[%clk 0:01:33]} 15. Ne4 {[%clk 0:02:22]}  Qf3 {[%clk 0:01:31]} 16. Rg1 {[%clk 0:02:03]}  dxe3 {[%clk 0:01:27]} 17. fxe3 {[%clk 0:02:04]}  Qxe3+ {[%clk 0:01:26]} 0-1


[Site "https://www.chess.com"]

[Event "Titled Tuesday Blitz February 21 Late 2023"]
[White "Deac, Bogdan-Daniel"]
[Black "Fiorito, Francisco"]
[WhiteFideId "1226380"]
[BlackFideId "180165"]
[WhiteElo "2700"]
[BlackElo "2305"]
[Result "1-0"]
[Round "06"]
[TimeControl "180+2"]
[Date "2023.02.21"]
[WhiteClock "0:00:10"]
[BlackClock "0:00:26"]

1. b3 {[%clk 0:03:00]}  e5 {[%clk 0:02:59]} 2. Bb2 {[%clk 0:03:00]}  Nc6 {[%clk 0:02:59]} 3. Nf3 {[%clk 0:03:00]}  d6 {[%clk 0:02:57]} 4. c4 {[%clk 0:02:59]}  Nf6 {[%clk 0:02:55]} 5. g3 {[%clk 0:02:58]}  g6 {[%clk 0:02:55]} 6. Bg2 {[%clk 0:02:57]}  Bg7 {[%clk 0:02:55]} 7. O-O {[%clk 0:02:58]}  O-O {[%clk 0:02:56]} 8. d3 {[%clk 0:02:58]}  h6 {[%clk 0:02:54]} 9. a3 {[%clk 0:02:57]}  a5 {[%clk 0:02:54]} 10. Nc3 {[%clk 0:02:56]}  Be6 {[%clk 0:02:53]} 11. e3 {[%clk 0:02:56]}  Ne8 {[%clk 0:02:52]} 12. d4 {[%clk 0:02:55]}  Bg4 {[%clk 0:02:47]} 13. d5 {[%clk 0:02:40]}  Ne7 {[%clk 0:02:47]} 14. h3 {[%clk 0:02:39]}  Bd7 {[%clk 0:02:47]} 15. e4 {[%clk 0:02:35]}  f5 {[%clk 0:02:48]} 16. exf5 {[%clk 0:02:35]}  gxf5 {[%clk 0:02:47]} 17. Nh4 {[%clk 0:02:36]}  Nf6 {[%clk 0:02:45]} 18. f4 {[%clk 0:02:34]}  e4 {[%clk 0:02:45]} 19. Ne2 {[%clk 0:02:33]}  Qe8 {[%clk 0:02:43]} 20. Nd4 {[%clk 0:02:31]}  Qf7 {[%clk 0:02:38]} 21. Rc1 {[%clk 0:02:27]}  Rac8 {[%clk 0:02:32]} 22. Qd2 {[%clk 0:02:26]}  a4 {[%clk 0:02:23]} 23. b4 {[%clk 0:02:26]}  c6 {[%clk 0:02:23]} 24. dxc6 {[%clk 0:02:26]}  bxc6 {[%clk 0:02:22]} 25. Kh2 {[%clk 0:02:24]}  Rfd8 {[%clk 0:02:18]} 26. Rfd1 {[%clk 0:02:23]}  Nh5 {[%clk 0:02:14]} 27. Qe2 {[%clk 0:02:18]}  Bf6 {[%clk 0:02:02]} 28. Qe3 {[%clk 0:01:28]}  Kh8 {[%clk 0:01:51]} 29. g4 {[%clk 0:00:43]}  fxg4 {[%clk 0:01:38]} 30. hxg4 {[%clk 0:00:42]}  Nxf4 {[%clk 0:01:04]} 31. Qxf4 {[%clk 0:00:40]}  Be5 {[%clk 0:01:04]} 32. Ne2 {[%clk 0:00:40]}  Qxf4+ {[%clk 0:01:04]} 33. Nxf4 {[%clk 0:00:38]}  Bxb2 {[%clk 0:01:05]} 34. Bxe4 {[%clk 0:00:34]}  Bxg4 {[%clk 0:00:58]} 35. Rg1 {[%clk 0:00:27]}  Bxc1 {[%clk 0:00:58]} 36. Nfg6+ {[%clk 0:00:25]}  Nxg6 {[%clk 0:00:57]} 37. Nxg6+ {[%clk 0:00:26]}  Kg7 {[%clk 0:00:57]} 38. Rxg4 {[%clk 0:00:27]}  Bg5 {[%clk 0:00:57]} 39. Ne7 {[%clk 0:00:27]}  Rc7 {[%clk 0:00:54]} 40. Nxc6 {[%clk 0:00:26]}  Re8 {[%clk 0:00:45]} 41. b5 {[%clk 0:00:24]}  Rf7 {[%clk 0:00:46]} 42. Kg3 {[%clk 0:00:15]}  Kf6 {[%clk 0:00:43]} 43. Bd5 {[%clk 0:00:16]}  Rg7 {[%clk 0:00:41]} 44. Kf2 {[%clk 0:00:14]}  h5 {[%clk 0:00:41]} 45. Rg2 {[%clk 0:00:12]}  Bh4+ {[%clk 0:00:40]} 46. Kf3 {[%clk 0:00:11]}  Re3+ {[%clk 0:00:34]} 47. Kxe3 {[%clk 0:00:10]}  Rxg2 {[%clk 0:00:34]} 48. Bxg2 {[%clk 0:00:10]}  Bg5+ {[%clk 0:00:30]} 49. Kd3 {[%clk 0:00:10]}  Bf4 {[%clk 0:00:26]} 50. Bd5 {[%clk 0:00:09]}  h4 {[%clk 0:00:26]} 51. b6 {[%clk 0:00:10]}  h3 {[%clk 0:00:26]} 52. b7 {[%clk 0:00:10]} 1-0


[Site "https://www.chess.com"]